fUSD/lending_fUSD_20260207
["ID","MTS","AMOUNT","RATE_DAILY","PERIOD"]
[404691090,1770468639041,-333.14371564,0.00015072,2]
[404691091,1770468639051,-500.0,0.00015072,2]
[404691092,1770468639065,-500.0,0.00015072,2]
[404691093,1770468639076,-500.0,0.00015072,2]
[404691094,1770468639087,-410.20942792,0.00015072,2]
[404691095,1770468639098,-500.0,0.00015072,2]
[404691096,1770468639108,-192.67143229,0.00015072,2]
[404691097,1770468639119,-500.0,0.00015072,2]
[404691098,1770468639130,-500.0,0.00015072,2]
[404691099,1770468639141,-500.0,0.00015072,2]
[404691100,1770468639152,-204.56985635,0.00015072,2]
[404691101,1770468639162,-500.0,0.00015072,2]
[404691102,1770468639174,-500.0,0.00015072,2]
[404691103,1770468639185,-500.0,0.00015072,2]
[404691104,1770468639196,-232.2,0.00015072,2]
[404691105,1770468639206,-4687.2878378,0.00015073,2]
[404691106,1770468639217,-3647.3351555,0.00015073,2]
[404691107,1770468639227,-1048.5871147,0.00015073,2]
[404691108,1770468639238,-1440.53628294,0.00015073,2]
[404691109,1770468639249,-192.0,0.000151,2]
[404691110,1770468639262,-237.35,0.00015141,2]
[404691111,1770468639273,-500.0,0.0001517,2]
[404691112,1770468639284,-500.0,0.0001517,2]
[404691113,1770468639294,-500.0,0.0001517,2]
[404691114,1770468639305,-500.0,0.0001517,2]
[404691115,1770468639316,-500.0,0.0001517,2]
[404691116,1770468639326,-216.75704898,0.0001517,2]
[404691117,1770468639337,-500.0,0.0001517,2]
[404691118,1770468639348,-500.0,0.0001517,2]
[404691119,1770468639360,-500.0,0.0001517,2]
[404691120,1770468639371,-500.0,0.0001517,2]
[404691121,1770468639382,-500.0,0.0001517,2]
[404691122,1770468639395,-500.0,0.0001517,2]
[404691123,1770468639405,-500.0,0.0001517,2]
[404691124,1770468639417,-500.0,0.0001517,2]
[404691125,1770468639427,-500.0,0.0001517,2]
[404691126,1770468639438,-500.0,0.0001517,2]
[404691127,1770468639450,-500.0,0.0001517,2]
[404691128,1770468639460,-500.0,0.0001517,2]
[404691129,1770468639471,-500.0,0.0001517,2]
[404691130,1770468639481,-299.33498216,0.0001517,2]
[404691131,1770468639493,-500.0,0.0001517,2]
[404691132,1770468639504,-500.0,0.0001517,2]
[404691133,1770468639514,-500.0,0.0001517,2]
[404691134,1770468639524,-500.0,0.0001517,2]
[404691135,1770468639535,-500.0,0.0001517,2]
[404691136,1770468639546,-500.0,0.0001517,2]
[404691137,1770468639557,-500.0,0.0001517,2]
[404691138,1770468639569,-500.0,0.0001517,2]
[404691139,1770468639579,-500.0,0.0001517,2]
[404691140,1770468639591,-477.56277877,0.00015173,2]
[404691141,1770468639602,-500.0,0.00015173,2]
[404691142,1770468639614,-500.0,0.00015173,2]
[404691143,1770468639625,-500.0,0.00015173,2]
[404691144,1770468639635,-501.14347346,0.00015173,2]
[404691145,1770468639645,-500.0,0.00015173,2]
[404691146,1770468639908,-500.0,0.00015173,2]
[404691147,1770468639932,-500.32773818,0.00015173,2]
[404691148,1770468639944,-500.0,0.00015173,2]
[404691150,1770468639954,-607.48017178,0.00015173,2]
[404691152,1770468639963,-500.0,0.00015173,2]
[404691153,1770468639974,-169.79228934,0.00015173,2]
[404691155,1770468639983,-500.0,0.00015173,2]
[404691157,1770468639993,-500.0,0.00015173,2]
[404691159,1770468640003,-217.81806779,0.00015173,2]
[404691161,1770468640016,-500.0,0.00015173,2]
[404691162,1770468640025,-166.51358966,0.00015173,2]
[404691164,1770468640034,-500.89849545,0.00015173,2]
[404691167,1770468640043,-500.0,0.00015173,2]
[404691169,1770468640053,-500.0,0.00015173,2]
[404691171,1770468640063,-500.0,0.00015173,2]
[404691173,1770468640072,-500.0,0.00015173,2]
[404691174,1770468640083,-500.0,0.00015173,2]
[404691175,1770468640093,-500.0,0.00015173,2]
[404691176,1770468640104,-500.0,0.00015173,2]
[404691177,1770468640114,-640.0,0.00015173,2]
[404691178,1770468640123,-500.0,0.00015173,2]
[404691179,1770468640133,-500.0,0.00015173,2]
[404691180,1770468640144,-255.0,0.00015195,2]
[404691181,1770468640153,-159.49,0.00015209,2]
[404691182,1770468640163,-158.72,0.00015248,2]
[404691183,1770468640172,-402.1288535,0.00015309,2]
[404691184,1770468640181,-278.44758318,0.00015309,2]
[404691185,1770468640191,-500.0,0.00015309,2]
[404691186,1770468640202,-500.0,0.00015309,2]
[404691187,1770468640212,-500.0,0.00015309,2]
[404691188,1770468640223,-500.0,0.00015309,2]
[404691189,1770468640233,-566.40458967,0.00015309,2]
[404691190,1770468640243,-999.99,0.0001531,2]
[404691191,1770468640252,-150.99,0.0001531,2]
[404691192,1770468640262,-14411.87,0.0001531,2]
[404691193,1770468640272,-22352.3,0.0001531,2]
[404691194,1770468640283,-1610.39,0.0001531,2]
[404691195,1770468640294,-26702.96,0.0001531,2]
[404691196,1770468640304,-9999.99,0.0001531,2]
[404691197,1770468640314,-9999.99,0.0001531,2]
[404691198,1770468640323,-5326.57,0.0001531,2]
[404691199,1770468640333,-14612.94,0.0001531,2]
[404691200,1770468640342,-499.99,0.0001531,2]
[404691201,1770468640352,-438.39,0.0001531,2]
[404691202,1770468640361,-1554.0,0.0001531,2]
[404691203,1770468640373,-9999.99,0.0001531,2]
[404691204,1770468640382,-150.99,0.0001531,2]
[404691205,1770468640392,-9999.99,0.0001531,2]
[404691206,1770468640402,-4999.99,0.0001531,2]
[404691207,1770468640412,-299.99,0.0001531,2]
[404691208,1770468640423,-237.35,0.00015415,2]
[404691209,1770468640433,-150.0,0.00015497,2]
[404691210,1770468640444,-500.0,0.00015512,2]
[404691211,1770468640454,-422.55,0.00015602,2]
[404691212,1770468640463,-171.54,0.00015629,2]
[404691214,1770468640473,-237.35,0.00015689,2]
[404691216,1770468640482,-151.0,0.00015703,2]
[404691218,1770468640491,-3240.0,0.00015703,2]
[404691220,1770468640501,-159.49,0.00015711,2]
[404691222,1770468640510,-1000.0,0.00015721,2]
[404691224,1770468640520,-500.0,0.00015721,2]
[404691226,1770468640529,-500.0,0.00015721,2]
[404691228,1770468640539,-1000.0,0.00015721,2]
[404691230,1770468640548,-1000.0,0.00015721,2]
[404691232,1770468640557,-1000.0,0.00015721,2]
[404691234,1770468640566,-381.3557452,0.00015721,2]
[404691236,1770468640576,-619.67330521,0.00015721,2]
[404691238,1770468640585,-506.10959782,0.00015721,2]
[404691239,1770468640594,-305.61116112,0.00015721,2]
[404691240,1770468640603,-1000.0,0.00015721,2]
[404691241,1770468640612,-1000.0,0.00015721,2]
[404691242,1770468640621,-158.72,0.00015782,2]
[404691243,1770468640630,-2242.91870603,0.00015807,2]
[404691244,1770468640639,-1394.11,0.00015916,2]
[404691245,1770468640650,-237.38218695,0.00015963,2]
[404691246,1770468640658,-174.53,0.00016,2]
[404691247,1770468640667,-150.27588129,0.00016,2]
[404691248,1770468640676,-33304.9777,0.00016016,2]
[404691249,1770468640685,-1000.0,0.00016016,2]
[404691250,1770468640694,-2500.0,0.00016016,2]
[404691251,1770468640703,-500.0,0.0001606,2]
[404691252,1770468640712,-4857.05093308,0.000162,5]
[404691253,1770468640722,-159.49,0.00016213,2]
[404691254,1770468640731,-846.67999999,0.00016268,2]
[404691255,1770468640740,-184.19856458,0.00016268,2]
[404691256,1770468640749,-705.73103869,0.00016268,2]
[404691258,1770468640758,-1193.87683295,0.00016268,2]
[404691260,1770468640767,-721.01082613,0.00016268,2]
[404691262,1770468640776,-1500.6861044,0.00016268,2]
[404691264,1770468640785,-3258.0,0.00016297,2]
[404691266,1770468640794,-422.55,0.00016345,2]
[404691267,1770468640805,-174.61919141,0.00016363,2]
[404691268,1770468640815,-578.20924308,0.00016363,2]
[404691269,1770468640825,-209.40437684,0.00016363,2]
[404691270,1770468640835,-721.12765535,0.00016363,2]
[404691271,1770468640845,-322.6107,0.00016363,2]
[404691272,1770468640854,-796.58212374,0.00016368,2]
[404691273,1770468640863,-163.0,0.000164,2]
[404691274,1770468640874,-433.0,0.00016405,2]
[404691275,1770468640882,-217.15233878,0.00016418,2]
[404691276,1770468640892,-800.0,0.00016438,2]
[404691277,1770468640902,-225.18697532,0.00016473,2]
[404691278,1770468640911,-233.51889341,0.00016528,2]
[404691279,1770468640921,-242.15909246,0.00016583,2]
[404691280,1770468640930,-796.58212374,0.00016624,2]
[404691281,1770468640940,-251.11897888,0.00016638,2]
[404691282,1770468640950,-176.64678228,0.00016657,2]
[404691283,1770468640959,-260.4103811,0.00016693,2]
[404691284,1770468640969,-165.79,0.00016712,2]
[404691285,1770468640978,-159.49,0.00016715,2]
[404691286,1770468640987,-840.0,0.0001672,2]
[404691287,1770468640996,-163.0,0.0001672,2]
[404691288,1770468641006,-270.0455652,0.00016748,2]
[404691289,1770468641018,-14460.93709418,0.00016763,2]
[404691290,1770468641027,-500.0,0.00016773,2]
[404691291,1770468641037,-189.69160583,0.00016773,2]
[404691292,1770468641046,-160.144,0.00016773,2]
[404691293,1770468641057,-160.144,0.00016773,2]
[404691294,1770468641066,-160.16,0.00016773,2]
[404691295,1770468641075,-160.144,0.00016773,2]
[404691296,1770468641085,-160.144,0.00016773,2]
[404691297,1770468641094,-160.0,0.00016773,2]
[404691298,1770468641103,-160.144,0.00016773,2]
[404691299,1770468641112,-160.144,0.00016773,2]
[404691300,1770468641121,-160.144,0.00016773,2]
[404691301,1770468641130,-160.144,0.00016773,2]
[404691302,1770468641139,-160.144,0.00016773,2]
[404691303,1770468641150,-500.86071742,0.00016773,2]
[404691304,1770468641159,-501.03613157,0.00016773,2]
[404691305,1770468641169,-501.79374222,0.00016773,2]
[404691306,1770468641178,-504.97187876,0.00016773,2]
[404691307,1770468641189,-500.54678551,0.00016773,2]
[404691308,1770468641198,-500.6237443,0.00016773,2]
[404691309,1770468641208,-501.52124127,0.00016773,2]
[404691310,1770468641217,-501.16814505,0.00016773,2]
[404691311,1770468641227,-501.17265421,0.00016773,2]
[404691312,1770468641236,-502.0240799,0.00016773,2]
[404691313,1770468641246,-500.0,0.00016773,2]
[404691314,1770468641255,-501.62253094,0.00016773,2]
[404691315,1770468641264,-501.23769089,0.00016773,2]
[404691316,1770468641274,-280.03725112,0.00016803,2]
[404691317,1770468641283,-869.6,0.00016803,2]
[404691318,1770468641293,-3381.0,0.00016858,2]
[404691319,1770468641303,-290.39862941,0.00016858,2]
[404691320,1770468641313,-151.0,0.0001686,2]
[404691321,1770468641322,-3254.0,0.00016863,2]
[404691322,1770468641332,-6584.0,0.00016863,2]
[404691323,1770468641342,-2486.99,0.00016863,2]
[404691324,1770468641352,-796.58212374,0.00016879,2]
[404691325,1770468641362,-14460.93709415,0.00016889,2]
[404691326,1770468641371,-12825.0,0.000169,2]
[404691327,1770468641381,-1356.7717126,0.00016906,2]
[404691328,1770468641390,-181.08010149,0.00016911,2]
[404691329,1770468641402,-301.1433787,0.00016913,2]
[404691330,1770468641411,-177.7,0.00016927,2]
[404691331,1770468641421,-1045.8752859,0.00016983,2]
[404691332,1770468641430,-813.8304773,0.00016983,2]
[404691333,1770468641440,-151.0,0.00016997,2]
[404691334,1770468641450,-500.0,0.00017,2]
[404691335,1770468641459,-633911.69810731,0.00017,2]
[404691336,1770468641468,-2000.0,0.00017,2]
[404691337,1770468641477,-200.0,0.00017,2]
[404691338,1770468641486,-151.0,0.00017,2]
[404691339,1770468641495,-152.384454,0.00017,2]
[404691340,1770468641504,-151.0,0.00017,2]
[404691341,1770468641513,-14460.93709415,0.00017016,2]
[404691342,1770468641522,-163.0,0.0001704,2]
[404691343,1770468641532,-840.0,0.0001704,2]
[404691344,1770468641541,-163.0,0.0001704,2]
[404691345,1770468641550,-163.0,0.0001704,2]
[404691346,1770468641559,-860.0,0.0001704,2]
[404691347,1770468641569,-869.6,0.00017077,2]
[404691348,1770468641578,-422.55,0.00017088,2]
[404691349,1770468641587,-796.58212374,0.00017134,2]
[404691350,1770468641596,-14460.93709415,0.00017142,2]
[404691351,1770468641606,-150.0,0.00017148,2]
[404691352,1770468641615,-1287.64763618,0.0001717,2]
[404691353,1770468641624,-200.0,0.0001717,2]
[404691354,1770468641633,-990.0,0.000172,2]
[404691355,1770468641643,-200.0,0.00017212,2]
[404691356,1770468641653,-159.49,0.00017217,2]
[404691357,1770468641662,-2000.0,0.0001722,2]
[404691358,1770468641671,-14460.93709415,0.00017268,2]
[404691359,1770468641680,-150.0,0.00017274,2]
[404691360,1770468641689,-150.125,0.00017274,2]
[404691361,1770468641699,-150.0,0.00017274,2]
[404691362,1770468641708,-150.0,0.00017274,2]
[404691363,1770468641717,-150.203,0.00017274,2]
[404691364,1770468641726,-151.0,0.00017274,2]
[404691365,1770468641736,-2942.467,0.00017297,2]
[404691366,1770468641745,-229.064,0.00017297,2]
[404691367,1770468641755,-743.15006395,0.00017321,2]
[404691368,1770468641764,-200.0,0.00017342,2]
[404691369,1770468641773,-451.34,0.0001735,2]
[404691370,1770468641782,-796.58212374,0.00017389,2]
[404691371,1770468641791,-14460.93709415,0.00017395,2]
[404691372,1770468641800,-1685.0,0.000174,2]
[404691373,1770468641809,-1500.0,0.000174,2]
[404691374,1770468641818,-311.0,0.000174,2]
[404691375,1770468641827,-1500.0,0.000174,2]
[404691376,1770468641836,-206.0,0.000174,2]
[404691377,1770468641846,-611.0,0.000174,2]
[404691378,1770468641855,-233.36632,0.00017409,2]
[404691379,1770468641864,-181.5901247,0.00017409,2]
[404691380,1770468641874,-187.78006525,0.00017459,2]
[404691381,1770468641884,-1500.0,0.000175,2]
[404691382,1770468641893,-200.0,0.00017515,2]
[404691383,1770468641903,-14460.93709415,0.00017521,2]
[404691384,1770468641912,-235.36,0.00017563,2]
[404691385,1770468641922,-151.0,0.00017564,2]
[404691386,1770468641931,-1500.0,0.000176,2]
[404691387,1770468641940,-1188.18820231,0.0001764,2]
[404691388,1770468641949,-796.58212374,0.00017645,2]
[404691389,1770468641959,-14460.93709415,0.00017647,2]
[404691390,1770468641969,-453.527216,0.00017667,7]
[404691391,1770468641978,-163.0,0.0001768,2]
[404691392,1770468641988,-163.0,0.0001768,2]
[404691393,1770468641997,-163.0,0.0001768,2]
[404691394,1770468642007,-1394.11,0.00017685,2]
[404691395,1770468642019,-200.0,0.0001769,2]
[404691396,1770468642028,-477.38783632,0.000177,2]
[404691398,1770468642038,-783.19290883,0.000177,2]
[404691399,1770468642047,-5530.0,0.000177,3]
[404691400,1770468642057,-159.49,0.00017719,2]
[404691401,1770468642066,-484.42085053,0.00017728,2]
[404691402,1770468642075,-334.5472959,0.00017732,2]
[404691403,1770468642086,-178.24,0.00017757,2]
[404691404,1770468642095,-200.0,0.00017774,2]
[404691405,1770468642104,-1669.05388883,0.00017799,2]
[404691406,1770468642113,-477.38783632,0.000178,2]
[404691407,1770468642122,-203.91426758,0.00017808,2]
[404691408,1770468642131,-250.0,0.00017808,10]
[404691409,1770468642140,-250.0,0.00017808,10]
[404691410,1770468642150,-250.0,0.00017808,10]
[404691411,1770468642159,-250.0,0.00017808,10]
[404691412,1770468642168,-250.0,0.00017808,10]
[404691413,1770468642178,-250.0,0.00017808,10]
[404691414,1770468642187,-250.0,0.00017808,10]
[404691415,1770468642196,-250.000003,0.00017808,10]
[404691416,1770468642205,-422.55,0.00017831,2]
[404691417,1770468642214,-362.15,0.00017889,2]
[404691418,1770468642224,-2437.0459,0.0001789,2]
[404691419,1770468642233,-500.0,0.000179,2]
[404691420,1770468642242,-477.38783632,0.000179,2]
[404691421,1770468642251,-9263.89162409,0.000179,3]
[404691422,1770468642261,-796.58212374,0.000179,2]
[404691423,1770468642270,-728.178456,0.000179,2]
[404691424,1770468642279,-474.61380548,0.000179,2]
[404691425,1770468642289,-3492.98138414,0.000179,2]
[404691426,1770468642299,-12066.72608614,0.000179,2]
[404691427,1770468642308,-500.0,0.000179,2]
[404691428,1770468642317,-500.0,0.000179,2]
[404691430,1770468642326,-500.0,0.000179,2]
[404691431,1770468642336,-500.0,0.000179,2]
[404691432,1770468642345,-500.0,0.000179,2]
[404691433,1770468642355,-500.0,0.000179,2]
[404691434,1770468642364,-500.0,0.000179,2]
[404691435,1770468642373,-444.30041557,0.000179,2]
[404691436,1770468642382,-150.0,0.00017973,2]
[404691437,1770468642393,-150.0,0.00017973,2]
[404691438,1770468642402,-200.0,0.00017984,2]
[404691439,1770468642411,-111593.37077307,0.0001799,3]
[404691440,1770468642420,-151.0,0.00017997,2]
[404691441,1770468642430,-300.0,0.00017999,2]
[404691443,1770468642439,-666.0,0.00017999,2]
[404691444,1770468642448,-161.0,0.00018,2]
[404691445,1770468642457,-478862.55990709,0.00018,2]
[404691447,1770468642581,-500.0,0.00018,2]
[404691448,1770468642592,-347.32,0.00018,2]
[404691449,1770468642603,-722.39378934,0.00018,2]
[404691450,1770468642618,-69999.99999994,0.00018,2]
[404691451,1770468642732,-326499.05023962,0.00018,2]
[404691452,1770468642743,-697.0,0.00018,2]
[404691453,1770468642755,-3500.0,0.00018,2]
[404691454,1770468642768,-4140.0629106,0.00018,2]
[404691455,1770468642780,-1902.07,0.00018,2]
[404691456,1770468642791,-398.3001991,0.00018,2]
[404691457,1770468642804,-461.26733746,0.00018,2]
[404691458,1770468642816,-7633.13592568,0.00018,2]
[404691459,1770468642827,-5717.07531757,0.00018,2]
[404691460,1770468642838,-1819.1209591,0.00018,2]
[404691462,1770468642850,-383.48562133,0.00018,2]
[404691464,1770468644435,-280.81358606,0.00017774,2]
[404691465,1770468644489,-6977.9,0.00017774,2]
[404691466,1770468644501,-255.75759708,0.00017774,2]
[404691467,1770468644512,-6946.46591101,0.00017774,2]
[404691468,1770468644521,-407174.91796978,0.00018,2]
[404691474,1770468646064,-7564.41839419,0.00018,2]
[404691475,1770468646118,-632.35968347,0.00018,2]
[404691480,1770468729103,152.0,0.000147,3]
[404691497,1770469518680,5530.0,0.00015,3]
[404691499,1770469550072,5530.0,0.00015,3]
[404691504,1770469581935,5530.0,0.000148,3]
[404691506,1770469613246,1765.0,0.000148,3]
[404691508,1770469769535,5530.0,0.00015,5]
[404691514,1770469832240,-2364.61060515,0.000142,2]
[404691515,1770469832403,-5.52299675,0.000142,2]
[404691516,1770469832415,-267.0,0.000142,2]
[404691517,1770469832425,-120.90700325,0.00014221,2]
[404691521,1770469838230,-479.09299675,0.00014221,2]
[404691522,1770469838239,-195.0,0.00014221,2]
[404691523,1770469838249,-300.0,0.00014243,2]
[404691524,1770469838258,-2500.0,0.00014243,2]
[404691525,1770469838267,-600.0,0.00014266,2]
[404691526,1770469838277,-195.0,0.00014266,2]
[404691527,1770469838286,-300.0,0.00014285,2]
[404691528,1770469838296,-1820948.5409076,0.00014299,2]
[404691529,1770469838307,-138456.99999999,0.00014299,2]
[404691530,1770469838319,-1341.69773257,0.00014299,2]
[404691531,1770469838333,-1260.0,0.00014299,2]
[404691532,1770469838344,-887.59089991,0.00014299,2]
[404691536,1770469840500,-1392.10538075,0.00014299,2]
[404691537,1770469840511,-420.70797009,0.00014299,2]
[404691538,1770469840523,-522.65137477,0.00014299,2]
[404691539,1770469840533,-7460.579175,0.00014299,2]
[404691540,1770469840557,-412.8989822,0.00014299,2]
[404691542,1770469844983,-614.69000001,0.00014299,2]
[404691543,1770469845038,-4836.39637721,0.00014299,2]
[404691544,1770469845123,-201725.97984111,0.00014299,2]
[404691549,1770469846286,-3592.0,0.00014299,2]
[404691573,1770470271962,400.0,0.000136,4]
[404691574,1770470274087,800.0,0.000137,5]
[404691575,1770470276185,1200.0,0.000138,5]
[404691576,1770470278283,1600.0,0.000139,5]
[404691577,1770470280380,2000.0,0.000149,5]
[404691579,1770470626341,-150.0,0.00010513,2]
[404691580,1770470627457,-32.63,0.00010513,2]
[404691582,1770470684686,-150.0,0.00011233,2]
[404691583,1770470759114,643.55067248,8e-05,2]
[404691605,1770471031439,-1465.96,0.00011233,2]
[404691606,1770471031449,-250.0,0.00011233,2]
[404691607,1770471031458,-215.47592063,0.00011233,2]
[404691608,1770471031497,-26.52407937,0.00011233,2]
[404691609,1770471031506,-195.0,0.00011316,2]
[404691610,1770471031516,-1765.91325658,0.00011498,2]
[404691611,1770471031526,-1200.0,0.0001201,2]
[404691612,1770471031536,-300.0,0.0001201,2]
[404691613,1770471031547,-152.0,0.0001201,2]
[404691614,1770471031558,-166.66,0.00012072,2]
[404691615,1770471031568,-426.0,0.00012166,2]
[404691616,1770471031578,-166.66,0.00012326,2]
[404691617,1770471031588,-150.0,0.00012355,2]
[404691618,1770471031599,-195.0,0.00012356,2]
[404691619,1770471031609,-300.0,0.00012356,2]
[404691621,1770471031619,-195.0,0.00012356,2]
[404691623,1770471031628,-250.0,0.00012356,2]
[404691625,1770471031637,-195.0,0.00012356,2]
[404691627,1770471031646,-250.0,0.00012356,2]
[404691629,1770471031655,-2040.1409985,0.00012567,2]
[404691631,1770471031668,-3794.84900764,0.00012567,2]
[404691632,1770471031678,-1014.31929586,0.00012567,2]
[404691633,1770471037405,-1062.217631,0.00012567,2]
[404691634,1770471037416,-166.66,0.0001258,2]
[404691635,1770471037425,-896.0,0.0001263,2]
[404691636,1770471037436,-146.850369,0.00012834,2]
[404691637,1770471037448,-19.809631,0.00012834,2]
[404691638,1770471037457,-200.0,0.00012868,2]
[404691639,1770471037466,-166.66,0.00013088,2]
[404691640,1770471037475,-1765.91325658,0.00013092,2]
[404691641,1770471037484,-150.82,0.00013117,2]
[404691642,1770471037494,-1115.29,0.00013175,2]
[404691643,1770471037503,-1680.0,0.00013211,2]
[404691644,1770471037512,-217.26,0.0001324,2]
[404691645,1770471037522,-306.43,0.0001327,2]
[404691646,1770471037531,-166.66,0.00013277,2]
[404691647,1770471037541,-166.66,0.00013342,2]
[404691648,1770471037550,-500.0,0.00013431,2]
[404691649,1770471037559,-500.0,0.00013431,2]
[404691650,1770471037568,-500.0,0.00013431,2]
[404691651,1770471037578,-500.0,0.00013431,2]
[404691652,1770471037587,-500.0,0.00013431,2]
[404691653,1770471037597,-500.0,0.00013431,2]
[404691654,1770471037606,-500.0,0.00013431,2]
[404691655,1770471037615,-500.0,0.00013431,2]
[404691656,1770471037624,-500.0,0.00013431,2]
[404691657,1770471037634,-500.0,0.00013431,2]
[404691658,1770471037643,-500.0,0.00013431,2]
[404691659,1770471037652,-500.0,0.00013431,2]
[404691660,1770471037662,-500.0,0.00013431,2]
[404691661,1770471037672,-151.0,0.00013431,2]
[404691662,1770471037681,-200.0,0.00013431,2]
[404691663,1770471037690,-151.0,0.00013431,2]
[404691664,1770471037699,-200.0,0.00013431,2]
[404691665,1770471037709,-151.0,0.00013431,2]
[404691666,1770471037717,-151.0,0.00013431,2]
[404691667,1770471037726,-151.0,0.00013431,2]
[404691668,1770471037734,-151.0,0.00013431,2]
[404691669,1770471037743,-151.0,0.00013431,2]
[404691670,1770471037752,-151.0,0.00013431,2]
[404691671,1770471037761,-151.0,0.00013431,2]
[404691672,1770471037773,-151.0,0.00013431,2]
[404691673,1770471037782,-151.0,0.00013431,2]
[404691674,1770471037791,-151.0,0.00013431,2]
[404691675,1770471037802,-151.0,0.00013431,2]
[404691676,1770471037815,-151.0,0.00013431,2]
[404691677,1770471037824,-151.0,0.00013431,2]
[404691678,1770471037833,-151.0,0.00013431,2]
[404691679,1770471037845,-151.0,0.00013431,2]
[404691680,1770471037854,-151.0,0.00013431,2]
[404691681,1770471037864,-151.0,0.00013431,2]
[404691682,1770471037873,-151.0,0.00013431,2]
[404691683,1770471037883,-500.0,0.00013431,2]
[404691684,1770471037892,-500.0,0.00013431,2]
[404691685,1770471037903,-500.0,0.00013431,2]
[404691686,1770471037913,-500.0,0.00013431,2]
[404691687,1770471037923,-500.0,0.00013431,2]
[404691688,1770471037932,-500.0,0.00013431,2]
[404691689,1770471037943,-500.0,0.00013431,2]
[404691690,1770471037952,-500.0,0.00013431,2]
[404691691,1770471037961,-500.0,0.00013431,2]
[404691692,1770471037970,-500.0,0.00013431,2]
[404691693,1770471037979,-500.0,0.00013431,2]
[404691694,1770471037987,-151.0,0.00013431,2]
[404691695,1770471037997,-151.0,0.00013431,2]
[404691696,1770471038006,-151.0,0.00013431,2]
[404691697,1770471038015,-151.0,0.00013431,2]
[404691698,1770471038023,-151.0,0.00013431,2]
[404691699,1770471038032,-151.0,0.00013431,2]
[404691700,1770471038041,-151.0,0.00013431,2]
[404691701,1770471038051,-151.0,0.00013431,2]
[404691702,1770471038060,-151.0,0.00013431,2]
[404691703,1770471038068,-151.0,0.00013431,2]
[404691704,1770471038078,-200.13575866,0.00013431,2]
[404691705,1770471038087,-500.0,0.00013431,2]
[404691706,1770471038096,-300.0,0.00013438,2]
[404691707,1770471038105,-8187.85,0.00013439,2]
[404691708,1770471038115,-255.0,0.00013442,2]
[404691709,1770471038124,-3353.79,0.00013519,2]
[404691710,1770471038133,-500.0,0.00013705,2]
[404691711,1770471038143,-166.66,0.00013716,2]
[404691712,1770471038153,-222.77,0.000138,2]
[404691713,1770471038162,-500.0,0.000139,2]
[404691714,1770471038172,-500.0,0.00013979,2]
[404691715,1770471038181,-200.0,0.00013979,2]
[404691716,1770471038191,-200.0,0.00013979,2]
[404691717,1770471038201,-511.92394536,0.00013979,2]
[404691718,1770471038210,-500.0,0.00014013,2]
[404691719,1770471038220,-150.0,0.00014013,2]
[404691720,1770471038229,-500.0,0.00014013,2]
[404691721,1770471038239,-150.41052194,0.00014013,2]
[404691722,1770471038248,-150.0,0.00014013,2]
[404691723,1770471038257,-150.0,0.00014013,2]
[404691724,1770471038267,-352.96267049,0.00014068,2]
[404691725,1770471038276,-500.0,0.00014068,2]